[Event "*** Titled Tuesday Blitz"]
[Site "Chess.com"]
[Date "2018.09.04"]
[Round "2"]
[White "pouya21"]
[Black "KhalilMousavi77"]
[Result "1-0"]
[WhiteElo "2663"]
[BlackElo "2744"]
[TimeControl "180+2"]
[EndTime "13:53:55 PDT"]
[Termination "pouya21 won by resignation"]

1. d4 {[%clk 0:03:01.9]} 1... Nf6 {[%clk 0:02:58.3]} 2. Nf3 {[%clk 0:03:02]}
2... g6 {[%clk 0:02:58.8]} 3. c4 {[%clk 0:03:01.1]} 3... Bg7 {[%clk 0:02:59.6]}
4. g3 {[%clk 0:03:02.2]} 4... O-O {[%clk 0:02:55.9]} 5. Bg2 {[%clk 0:03:03.3]}
5... d5 {[%clk 0:02:52.1]} 6. cxd5 {[%clk 0:03:05.2]} 6... Nxd5 {[%clk
0:02:52.5]} 7. O-O {[%clk 0:03:06.2]} 7... Nb6 {[%clk 0:02:53.8]} 8. Nc3 {[%clk
0:03:06.9]} 8... Nc6 {[%clk 0:02:54.9]} 9. d5 {[%clk 0:03:07.9]} 9... Na5 {[%clk
0:02:55.6]} 10. e4 {[%clk 0:03:08.7]} 10... c6 {[%clk 0:02:52.9]} 11. Bf4 {[%clk
0:03:04.2]} 11... cxd5 {[%clk 0:02:51.5]} 12. exd5 {[%clk 0:03:02.2]} 12... Nac4
{[%clk 0:02:52]} 13. Qe2 {[%clk 0:03:02.7]} 13... Nd6 {[%clk 0:02:52]} 14. Rad1
{[%clk 0:03:02.6]} 14... Bf5 {[%clk 0:02:50]} 15. Nd4 {[%clk 0:03:00.1]} 15...
Bd7 {[%clk 0:02:50.4]} 16. Rfe1 {[%clk 0:02:59.8]} 16... Re8 {[%clk 0:02:50.9]}
17. Be5 {[%clk 0:02:53.5]} 17... Rc8 {[%clk 0:02:48.2]} 18. Bxg7 {[%clk
0:02:54.2]} 18... Kxg7 {[%clk 0:02:48.9]} 19. h4 {[%clk 0:02:54.3]} 19... h5
{[%clk 0:02:43.8]} 20. Nf3 {[%clk 0:02:54.6]} 20... Bg4 {[%clk 0:02:43.4]} 21.
Rd4 {[%clk 0:02:50.3]} 21... Rc4 {[%clk 0:02:34.3]} 22. Qe5+ {[%clk 0:02:49.1]}
22... f6 {[%clk 0:02:32.8]} 23. Qe3 {[%clk 0:02:44.6]} 23... Nf5 {[%clk
0:02:32.6]} 24. Qd3 {[%clk 0:02:41.7]} 24... Nxd4 {[%clk 0:02:27.9]} 25. Nxd4
{[%clk 0:02:43.1]} 25... Qd6 {[%clk 0:02:26.7]} 26. Ne6+ {[%clk 0:02:35.5]}
26... Bxe6 {[%clk 0:02:22.2]} 27. Rxe6 {[%clk 0:02:37.4]} 27... Qc5 {[%clk
0:02:23.4]} 28. d6 {[%clk 0:02:35.4]} 28... Rd4 {[%clk 0:02:20.1]} 29. Qe2
{[%clk 0:02:32]} 29... Nc8 {[%clk 0:02:05.5]} 30. Ne4 {[%clk 0:02:27.4]} 30...
Qc1+ {[%clk 0:02:04.6]} 31. Kh2 {[%clk 0:02:28.1]} 31... Qd1 {[%clk 0:02:03.2]}
32. Qb5 {[%clk 0:02:15.3]} 32... Kf7 {[%clk 0:02:04.1]} 33. d7 {[%clk
0:02:13.5]} 33... Rxd7 {[%clk 0:02:04.3]} 34. Qc4 {[%clk 0:02:07.4]} 34... Kg7
{[%clk 0:02:04]} 35. Nxf6 {[%clk 0:02:06.5]} 35... Rf8 {[%clk 0:01:57.1]} 36.
Nxd7 {[%clk 0:02:05.1]} 36... Qxd7 {[%clk 0:01:59]} 37. Qc3+ {[%clk 0:02:05.3]}
37... Kh7 {[%clk 0:01:59.4]} 38. Qe3 {[%clk 0:02:02.3]} 38... Kg7 {[%clk
0:01:53.5]} 39. Qe5+ {[%clk 0:01:57.6]} 39... Rf6 {[%clk 0:01:54.5]} 40. Bd5
{[%clk 0:01:55.1]} 40... b6 {[%clk 0:01:41.2]} 41. f3 {[%clk 0:01:56.3]} 41...
a5 {[%clk 0:01:41.6]} 42. g4 {[%clk 0:01:57]} 42... Qd8 {[%clk 0:01:40.2]} 43.
g5 {[%clk 0:01:54.5]} 1-0

[Event "*** Titled Tuesday Blitz"]
[Site "Chess.com"]
[Date "2018.09.04"]
[Round "2"]
[White "FMJoseHerrera"]
[Black "Squirlolz"]
[Result "1-0"]
[WhiteElo "2387"]
[BlackElo "2442"]
[TimeControl "180+2"]
[EndTime "13:54:02 PDT"]
[Termination "FMJoseHerrera won by checkmate"]

1. Nf3 {[%clk 0:02:54.8]} 1... d5 {[%clk 0:02:58.8]} 2. g3 {[%clk 0:02:55.7]}
2... Nf6 {[%clk 0:02:59.8]} 3. Bg2 {[%clk 0:02:56.5]} 3... e6 {[%clk 0:03:01.3]}
4. O-O {[%clk 0:02:57.8]} 4... Be7 {[%clk 0:03:02.8]} 5. d3 {[%clk 0:02:59.7]}
5... O-O {[%clk 0:03:03.7]} 6. c3 {[%clk 0:03:01.6]} 6... c5 {[%clk 0:03:03.9]}
7. a3 {[%clk 0:03:03.5]} 7... a5 {[%clk 0:03:03.7]} 8. a4 {[%clk 0:03:04.9]}
8... Nc6 {[%clk 0:03:05.3]} 9. Na3 {[%clk 0:03:06]} 9... b6 {[%clk 0:03:01.7]}
10. Nb5 {[%clk 0:03:07]} 10... Bb7 {[%clk 0:03:01.2]} 11. Bf4 {[%clk 0:03:06.8]}
11... Rc8 {[%clk 0:02:57.1]} 12. Qc2 {[%clk 0:03:07.5]} 12... Nh5 {[%clk
0:02:53.1]} 13. Bd2 {[%clk 0:03:05.2]} 13... e5 {[%clk 0:02:48]} 14. e4 {[%clk
0:03:05.9]} 14... d4 {[%clk 0:02:44.9]} 15. Na3 {[%clk 0:03:01.3]} 15... Ba6
{[%clk 0:02:32.1]} 16. Rad1 {[%clk 0:03:00.1]} 16... Qd7 {[%clk 0:02:22.1]} 17.
Nb5 {[%clk 0:02:54.8]} 17... Rfd8 {[%clk 0:02:17.4]} 18. Qb3 {[%clk 0:02:54.5]}
18... dxc3 {[%clk 0:01:59.7]} 19. Bxc3 {[%clk 0:02:53.6]} 19... Nd4 {[%clk
0:01:55.1]} 20. Qa2 {[%clk 0:02:37.5]} 20... Bxb5 {[%clk 0:01:35]} 21. axb5
{[%clk 0:02:35.6]} 21... Bd6 {[%clk 0:01:33.7]} 22. Bxd4 {[%clk 0:02:32.7]}
22... cxd4 {[%clk 0:01:31.6]} 23. Ng5 {[%clk 0:02:22.4]} 23... Rc5 {[%clk
0:01:26.3]} 24. Bh3 {[%clk 0:02:20.9]} 24... Qe7 {[%clk 0:01:27.2]} 25. Nxf7
{[%clk 0:02:21.6]} 25... Kf8 {[%clk 0:01:15.7]} 26. Nxd8 {[%clk 0:02:19.2]}
26... Qxd8 {[%clk 0:01:17.6]} 27. Rc1 {[%clk 0:02:15.4]} 27... Qg5 {[%clk
0:01:09.8]} 28. Qe6 {[%clk 0:02:14.7]} 28... Be7 {[%clk 0:01:04.6]} 29. Rxc5
{[%clk 0:02:12.7]} 29... Bxc5 {[%clk 0:01:06.5]} 30. Qc8+ {[%clk 0:02:12.8]}
30... Ke7 {[%clk 0:01:05.9]} 31. Qc7+ {[%clk 0:02:08.9]} 31... Kf8 {[%clk
0:01:06.5]} 32. Qc8+ {[%clk 0:02:04]} 32... Ke7 {[%clk 0:01:07]} 33. Be6 {[%clk
0:02:05.9]} 33... Kf6 {[%clk 0:00:43]} 34. Qd8+ {[%clk 0:01:57.2]} 34... Be7
{[%clk 0:00:43.9]} 35. Qg8 {[%clk 0:01:58.3]} 35... Kg6 {[%clk 0:00:30.3]} 36.
Bf5+ {[%clk 0:01:56.4]} 36... Kh6 {[%clk 0:00:27.8]} 37. Qxh7# {[%clk
0:01:57.1]} 1-0

[Event "*** Titled Tuesday Blitz"]
[Site "Chess.com"]
[Date "2018.09.04"]
[Round "2"]
[White "A-Fier"]
[Black "jk13"]
[Result "1-0"]
[WhiteElo "2763"]
[BlackElo "2536"]
[TimeControl "180+2"]
[EndTime "13:54:12 PDT"]
[Termination "A-Fier won by resignation"]

1. e4 {[%clk 0:03:01.9]} 1... e5 {[%clk 0:03:00.3]} 2. Nf3 {[%clk 0:03:02.4]}
2... Nc6 {[%clk 0:02:59.9]} 3. Bc4 {[%clk 0:03:03.3]} 3... Bc5 {[%clk
0:03:00.7]} 4. c3 {[%clk 0:03:04.1]} 4... Nf6 {[%clk 0:03:02.1]} 5. d4 {[%clk
0:03:05]} 5... exd4 {[%clk 0:03:02.5]} 6. e5 {[%clk 0:03:06.4]} 6... d5 {[%clk
0:03:03]} 7. Be2 {[%clk 0:03:07.4]} 7... Ne4 {[%clk 0:03:03.1]} 8. cxd4 {[%clk
0:03:08]} 8... Bb6 {[%clk 0:03:02.5]} 9. Nc3 {[%clk 0:03:09.2]} 9... Nxc3 {[%clk
0:03:02.6]} 10. bxc3 {[%clk 0:03:10.1]} 10... O-O {[%clk 0:03:04.5]} 11. Bg5
{[%clk 0:03:08.5]} 11... Qe8 {[%clk 0:03:02.2]} 12. O-O {[%clk 0:03:09.2]} 12...
Bg4 {[%clk 0:02:59.3]} 13. h3 {[%clk 0:03:10]} 13... Bh5 {[%clk 0:03:00.3]} 14.
g4 {[%clk 0:03:08.7]} 14... Bg6 {[%clk 0:03:01.3]} 15. Bd3 {[%clk 0:03:10.2]}
15... Nd8 {[%clk 0:02:40.4]} 16. Bf5 {[%clk 0:03:08]} 16... Ne6 {[%clk 0:02:41]}
17. Be3 {[%clk 0:03:02.3]} 17... Rd8 {[%clk 0:02:35.2]} 18. Qd3 {[%clk 0:03:02]}
18... c5 {[%clk 0:02:34.9]} 19. Rae1 {[%clk 0:03:02.4]} 19... Qa4 {[%clk
0:02:30.5]} 20. h4 {[%clk 0:02:57.8]} 20... cxd4 {[%clk 0:02:19.1]} 21. cxd4
{[%clk 0:02:58]} 21... Qc4 {[%clk 0:02:10.5]} 22. Qd2 {[%clk 0:02:56.3]} 22...
h5 {[%clk 0:02:06.1]} 23. Rc1 {[%clk 0:02:24.3]} 23... Qa4 {[%clk 0:02:06.9]}
24. Qd3 {[%clk 0:02:20.2]} 24... hxg4 {[%clk 0:01:56]} 25. Bxg6 {[%clk
0:02:20.9]} 25... fxg6 {[%clk 0:01:36]} 26. Qxg6 {[%clk 0:02:22.8]} 26... Qd7
{[%clk 0:01:03.7]} 27. Ng5 {[%clk 0:02:12.7]} 27... Nxg5 {[%clk 0:01:04.8]} 28.
hxg5 {[%clk 0:02:13.3]} 28... Rde8 {[%clk 0:00:58.8]} 29. Kg2 {[%clk 0:02:02.1]}
29... Rf3 {[%clk 0:00:47.9]} 30. Rh1 {[%clk 0:01:58.1]} 30... Rh3 {[%clk
0:00:49]} 31. Rxh3 {[%clk 0:01:55]} 31... gxh3+ {[%clk 0:00:49.8]} 32. Kh2
{[%clk 0:01:56.3]} 32... Re7 {[%clk 0:00:36.6]} 33. Qh5 {[%clk 0:01:49.7]} 33...
Qf5 {[%clk 0:00:36.6]} 34. Qxh3 {[%clk 0:01:46.1]} 34... Qxh3+ {[%clk
0:00:35.3]} 35. Kxh3 {[%clk 0:01:47.2]} 35... Kf7 {[%clk 0:00:35.3]} 36. Kg4
{[%clk 0:01:47.6]} 36... g6 {[%clk 0:00:35.5]} 37. Rh1 {[%clk 0:01:47.3]} 37...
Ke6 {[%clk 0:00:36.9]} 38. Rh6 {[%clk 0:01:47.5]} 38... Rg7 {[%clk 0:00:37.2]}
39. f4 {[%clk 0:01:48.6]} 39... Kf7 {[%clk 0:00:35.2]} 40. f5 {[%clk 0:01:49.8]}
1-0

[Event "*** Titled Tuesday Blitz"]
[Site "Chess.com"]
[Date "2018.09.04"]
[Round "2"]
[White "staz_staz"]
[Black "GeorgMeier"]
[Result "1/2-1/2"]
[WhiteElo "2346"]
[BlackElo "2817"]
[TimeControl "180+2"]
[EndTime "13:54:16 PDT"]
[Termination "Game drawn by repetition"]

1. d4 {[%clk 0:03:01.1]} 1... e6 {[%clk 0:03:01.9]} 2. c4 {[%clk 0:03:01.4]}
2... d5 {[%clk 0:03:03.5]} 3. Nf3 {[%clk 0:03:02.2]} 3... Nf6 {[%clk 0:03:04.7]}
4. e3 {[%clk 0:03:03]} 4... Be7 {[%clk 0:03:05.9]} 5. Nc3 {[%clk 0:03:03.7]}
5... O-O {[%clk 0:03:07.3]} 6. Bd3 {[%clk 0:03:04.6]} 6... c5 {[%clk 0:03:08.4]}
7. b3 {[%clk 0:03:04.1]} 7... cxd4 {[%clk 0:03:10.3]} 8. exd4 {[%clk 0:03:04.7]}
8... Nc6 {[%clk 0:03:11.8]} 9. Ne2 {[%clk 0:03:01.3]} 9... b6 {[%clk 0:03:12]}
10. O-O {[%clk 0:03:01.6]} 10... Ba6 {[%clk 0:03:12.4]} 11. Bb2 {[%clk
0:03:02.3]} 11... Rc8 {[%clk 0:03:12.8]} 12. Rc1 {[%clk 0:03:03]} 12... Nb4
{[%clk 0:03:11.9]} 13. Ne5 {[%clk 0:02:59.7]} 13... Nxd3 {[%clk 0:03:12.3]} 14.
Qxd3 {[%clk 0:03:01.6]} 14... Nd7 {[%clk 0:03:13.5]} 15. Ng3 {[%clk 0:02:55.1]}
15... Nxe5 {[%clk 0:03:13.6]} 16. dxe5 {[%clk 0:02:57]} 16... dxc4 {[%clk
0:03:15.5]} 17. Qf3 {[%clk 0:02:50.7]} 17... cxb3 {[%clk 0:03:15.1]} 18. Rfd1
{[%clk 0:02:48.7]} 18... Rxc1 {[%clk 0:03:11.5]} 19. Bxc1 {[%clk 0:02:49.3]}
19... Qc7 {[%clk 0:03:12.6]} 20. Qg4 {[%clk 0:02:48.2]} 20... Qc2 {[%clk
0:03:06.2]} 21. axb3 {[%clk 0:02:39.6]} 21... Rd8 {[%clk 0:02:59.4]} 22. Re1
{[%clk 0:02:28.4]} 22... Bd3 {[%clk 0:02:36]} 23. h4 {[%clk 0:02:24]} 23... a5
{[%clk 0:02:30.6]} 24. h5 {[%clk 0:02:19.6]} 24... Qxb3 {[%clk 0:02:29.3]} 25.
Bh6 {[%clk 0:02:19.7]} 25... g6 {[%clk 0:02:29.2]} 26. Re3 {[%clk 0:02:14.9]}
26... a4 {[%clk 0:02:14.5]} 27. Bg5 {[%clk 0:02:13.1]} 27... Bxg5 {[%clk
0:02:09.5]} 28. Qxg5 {[%clk 0:02:14.9]} 28... Rd7 {[%clk 0:02:09.1]} 29. Qf6
{[%clk 0:02:11.8]} 29... Qb4 {[%clk 0:02:05.5]} 30. h6 {[%clk 0:02:03.4]} 30...
Qf8 {[%clk 0:02:06]} 31. Qf3 {[%clk 0:02:00.9]} 31... Bf5 {[%clk 0:02:04.1]} 32.
Qf4 {[%clk 0:01:54.8]} 32... Ra7 {[%clk 0:02:02.3]} 33. Nxf5 {[%clk 0:01:49]}
33... exf5 {[%clk 0:02:01.9]} 34. e6 {[%clk 0:01:50]} 34... a3 {[%clk
0:02:00.6]} 35. exf7+ {[%clk 0:01:24.7]} 35... Rxf7 {[%clk 0:02:01.4]} 36. Qc4
{[%clk 0:01:25]} 36... b5 {[%clk 0:01:53.3]} 37. Qxb5 {[%clk 0:01:18.2]} 37...
Qxh6 {[%clk 0:01:54]} 38. Re8+ {[%clk 0:01:15.7]} 38... Rf8 {[%clk 0:01:49.4]}
39. Qd5+ {[%clk 0:01:12.6]} 39... Kh8 {[%clk 0:01:49.6]} 40. Qe5+ {[%clk
0:01:12.4]} 40... Kg8 {[%clk 0:01:50.8]} 41. Qe6+ {[%clk 0:01:12.4]} 41... Kh8
{[%clk 0:01:51.2]} 42. Qf6+ {[%clk 0:01:12]} 42... Kg8 {[%clk 0:01:52.4]} 43.
Qe6+ {[%clk 0:01:07.5]} 43... Kh8 {[%clk 0:01:53.4]} 44. Qf6+ {[%clk 0:01:08.3]}
44... Kg8 {[%clk 0:01:54.8]} 45. Qe6+ {[%clk 0:01:09.4]} 1/2-1/2

[Event "*** Titled Tuesday Blitz"]
[Site "Chess.com"]
[Date "2018.09.04"]
[Round "2"]
[White "yosephtaher"]
[Black "Drags95"]
[Result "1-0"]
[WhiteElo "2702"]
[BlackElo "2668"]
[TimeControl "180+2"]
[EndTime "13:54:18 PDT"]
[Termination "yosephtaher won by resignation"]

1. e4 {[%clk 0:03:01.9]} 1... e5 {[%clk 0:02:57.3]} 2. Nf3 {[%clk 0:03:03]} 2...
Nc6 {[%clk 0:02:58.1]} 3. Bb5 {[%clk 0:03:04.5]} 3... a6 {[%clk 0:02:59]} 4. Ba4
{[%clk 0:03:06]} 4... Nf6 {[%clk 0:02:53.1]} 5. O-O {[%clk 0:03:06.6]} 5... Be7
{[%clk 0:02:54.7]} 6. Re1 {[%clk 0:03:07.6]} 6... b5 {[%clk 0:02:56.3]} 7. Bb3
{[%clk 0:03:08.5]} 7... O-O {[%clk 0:02:57.9]} 8. c3 {[%clk 0:03:09.8]} 8... d5
{[%clk 0:02:58.7]} 9. d4 {[%clk 0:03:03.9]} 9... exd4 {[%clk 0:02:53.6]} 10. e5
{[%clk 0:03:04]} 10... Ne4 {[%clk 0:02:54.8]} 11. cxd4 {[%clk 0:03:04.4]} 11...
Bf5 {[%clk 0:02:54.4]} 12. Nc3 {[%clk 0:03:04.7]} 12... Nxc3 {[%clk 0:02:51.7]}
13. bxc3 {[%clk 0:03:06.6]} 13... Qd7 {[%clk 0:02:38.7]} 14. Nd2 {[%clk
0:03:01.7]} 14... Na5 {[%clk 0:02:32.7]} 15. Bc2 {[%clk 0:02:58.3]} 15... c5
{[%clk 0:02:29.1]} 16. Bxf5 {[%clk 0:02:53.6]} 16... Qxf5 {[%clk 0:02:28.3]} 17.
Nb3 {[%clk 0:02:55.1]} 17... Nxb3 {[%clk 0:02:21.8]} 18. axb3 {[%clk 0:02:55.5]}
18... c4 {[%clk 0:02:19.7]} 19. bxc4 {[%clk 0:02:52.4]} 19... bxc4 {[%clk
0:02:21.6]} 20. Ba3 {[%clk 0:02:47.8]} 20... Bxa3 {[%clk 0:01:55.9]} 21. Rxa3
{[%clk 0:02:49.7]} 21... Rfb8 {[%clk 0:01:56.7]} 22. h3 {[%clk 0:02:31.8]} 22...
g6 {[%clk 0:01:53.9]} 23. Qa1 {[%clk 0:02:18.5]} 23... Rb6 {[%clk 0:01:45.5]}
24. Qc1 {[%clk 0:02:10.1]} 24... a5 {[%clk 0:01:41.3]} 25. Qe3 {[%clk
0:01:51.5]} 25... a4 {[%clk 0:01:39]} 26. Kh2 {[%clk 0:01:38.9]} 26... Raa6
{[%clk 0:01:18.8]} 27. Rea1 {[%clk 0:01:36.6]} 27... Qd7 {[%clk 0:01:14.9]} 28.
Qf3 {[%clk 0:01:35.3]} 28... Rb3 {[%clk 0:01:14.5]} 29. Qe2 {[%clk 0:01:18.3]}
29... Kg7 {[%clk 0:00:57.5]} 30. Rxb3 {[%clk 0:01:17.8]} 30... cxb3 {[%clk
0:00:40]} 31. Qxa6 {[%clk 0:01:17]} 31... b2 {[%clk 0:00:41.5]} 32. Rb1 {[%clk
0:01:16.6]} 32... Qf5 {[%clk 0:00:43]} 33. Rxb2 {[%clk 0:01:15.2]} 33... Qf4+
{[%clk 0:00:44.1]} 34. g3 {[%clk 0:01:16.7]} 34... Qc1 {[%clk 0:00:45.2]} 1-0

[Event "*** Titled Tuesday Blitz"]
[Site "Chess.com"]
[Date "2018.09.04"]
[Round "2"]
[White "gammagramma"]
[Black "pKiLz5Rn9b"]
[Result "1-0"]
[WhiteElo "2582"]
[BlackElo "2805"]
[TimeControl "180+2"]
[EndTime "13:54:26 PDT"]
[Termination "gammagramma won by resignation"]

1. d4 {[%clk 0:03:01.9]} 1... Nf6 {[%clk 0:03:01]} 2. c4 {[%clk 0:03:03.4]} 2...
e6 {[%clk 0:03:02.3]} 3. Nc3 {[%clk 0:03:04.8]} 3... Bb4 {[%clk 0:03:03]} 4. Bd2
{[%clk 0:03:05.7]} 4... O-O {[%clk 0:03:01.8]} 5. Rc1 {[%clk 0:03:06.9]} 5... d6
{[%clk 0:02:48.3]} 6. g3 {[%clk 0:03:06]} 6... c5 {[%clk 0:02:46.3]} 7. dxc5
{[%clk 0:03:05.6]} 7... Bxc5 {[%clk 0:02:21.4]} 8. Bg2 {[%clk 0:03:05.2]} 8...
Ng4 {[%clk 0:02:19.8]} 9. e3 {[%clk 0:03:05.2]} 9... Ne5 {[%clk 0:02:18.7]} 10.
Qe2 {[%clk 0:03:03.7]} 10... Nbc6 {[%clk 0:02:14.6]} 11. a3 {[%clk 0:02:55.1]}
11... a6 {[%clk 0:02:13.5]} 12. Nh3 {[%clk 0:02:53.7]} 12... Bd7 {[%clk
0:02:14.3]} 13. O-O {[%clk 0:02:54.5]} 13... Rc8 {[%clk 0:02:15.9]} 14. Rfd1
{[%clk 0:02:55]} 14... Qe7 {[%clk 0:02:15.8]} 15. Ne4 {[%clk 0:02:51]} 15...
Rfd8 {[%clk 0:02:09.7]} 16. Bc3 {[%clk 0:02:48.5]} 16... Be8 {[%clk 0:02:05.8]}
17. Nxc5 {[%clk 0:02:37.1]} 17... dxc5 {[%clk 0:02:05.5]} 18. Nf4 {[%clk
0:02:38.6]} 18... h6 {[%clk 0:01:42.5]} 19. h4 {[%clk 0:02:38.8]} 19... Rb8
{[%clk 0:01:32.9]} 20. h5 {[%clk 0:02:39.1]} 20... b5 {[%clk 0:01:33.5]} 21.
Rxd8 {[%clk 0:02:38.5]} 21... Qxd8 {[%clk 0:01:32]} 22. cxb5 {[%clk 0:02:25.7]}
22... axb5 {[%clk 0:01:32.8]} 23. b4 {[%clk 0:02:23.5]} 23... c4 {[%clk
0:01:29.5]} 24. Be4 {[%clk 0:02:21.3]} 24... Qe7 {[%clk 0:01:21.4]} 25. Rd1
{[%clk 0:02:16]} 25... Rd8 {[%clk 0:01:18.4]} 26. Bb1 {[%clk 0:02:13.5]} 26...
Nd7 {[%clk 0:01:03.3]} 27. Qc2 {[%clk 0:02:11.7]} 27... Nf8 {[%clk 0:01:04.3]}
28. Bb2 {[%clk 0:02:01.1]} 28... f6 {[%clk 0:00:55.8]} 29. Rxd8 {[%clk
0:01:54.9]} 29... Nxd8 {[%clk 0:00:56.1]} 30. Qd1 {[%clk 0:01:48.1]} 30... Qd7
{[%clk 0:00:49.5]} 31. Qg4 {[%clk 0:01:36.5]} 31... e5 {[%clk 0:00:31.6]} 32.
Qxd7 {[%clk 0:01:35.7]} 32... Nxd7 {[%clk 0:00:25.9]} 33. Nd5 {[%clk 0:01:36.8]}
33... Nb6 {[%clk 0:00:18.7]} 34. Nxb6 {[%clk 0:01:37.1]} 1-0

[Event "*** Titled Tuesday Blitz"]
[Site "Chess.com"]
[Date "2018.09.04"]
[Round "2"]
[White "Mistheoretical"]
[Black "TheRigos"]
[Result "0-1"]
[WhiteElo "2395"]
[BlackElo "2422"]
[TimeControl "180+2"]
[EndTime "13:54:54 PDT"]
[Termination "TheRigos won by resignation"]

1. d4 {[%clk 0:03:01.9]} 1... Nf6 {[%clk 0:03:00.6]} 2. Bg5 {[%clk 0:03:02.8]}
2... Ne4 {[%clk 0:03:01.7]} 3. Bf4 {[%clk 0:03:03.8]} 3... c5 {[%clk 0:03:02.7]}
4. f3 {[%clk 0:03:04.9]} 4... Qa5+ {[%clk 0:03:02.7]} 5. c3 {[%clk 0:03:06.2]}
5... Nf6 {[%clk 0:03:04.2]} 6. Nd2 {[%clk 0:03:07.5]} 6... cxd4 {[%clk
0:02:20.7]} 7. Nb3 {[%clk 0:03:08.2]} 7... Qb6 {[%clk 0:02:14.9]} 8. Qxd4 {[%clk
0:03:08.9]} 8... e6 {[%clk 0:02:09.3]} 9. Qxb6 {[%clk 0:02:59.4]} 9... axb6
{[%clk 0:02:10.3]} 10. e4 {[%clk 0:02:59.9]} 10... Nc6 {[%clk 0:02:07.6]} 11.
Bd3 {[%clk 0:02:46.3]} 11... d5 {[%clk 0:02:08.5]} 12. Nd2 {[%clk 0:02:39.6]}
12... Bc5 {[%clk 0:02:05.9]} 13. Ne2 {[%clk 0:02:36.6]} 13... e5 {[%clk
0:02:06.9]} 14. Bg5 {[%clk 0:02:32.8]} 14... dxe4 {[%clk 0:02:02.8]} 15. Nxe4
{[%clk 0:02:25.6]} 15... Nxe4 {[%clk 0:01:56.3]} 16. Bxe4 {[%clk 0:02:27.5]}
16... Be6 {[%clk 0:01:57.5]} 17. a3 {[%clk 0:02:18.5]} 17... f6 {[%clk
0:01:56.9]} 18. Bh4 {[%clk 0:02:17.9]} 18... Bc4 {[%clk 0:01:57]} 19. Bf2 {[%clk
0:02:17.7]} 19... Ke7 {[%clk 0:01:34.3]} 20. Ng3 {[%clk 0:01:56.4]} 20... g6
{[%clk 0:01:32.2]} 21. Nf1 {[%clk 0:01:57.7]} 21... Rhd8 {[%clk 0:01:23.1]} 22.
Ne3 {[%clk 0:01:50.3]} 22... Be6 {[%clk 0:01:21.5]} 23. g4 {[%clk 0:01:34.2]}
23... Bb3 {[%clk 0:01:00.5]} 24. Ke2 {[%clk 0:01:20.8]} 24... Na5 {[%clk
0:00:59.5]} 25. h4 {[%clk 0:01:11.4]} 25... Rd6 {[%clk 0:00:52.2]} 26. h5 {[%clk
0:01:05.8]} 26... Rad8 {[%clk 0:00:53.1]} 27. Be1 {[%clk 0:01:00.2]} 27... Nc4
{[%clk 0:00:41.1]} 28. Nc2 {[%clk 0:00:44.4]} 28... Nxb2 {[%clk 0:00:35.6]} 29.
hxg6 {[%clk 0:00:40.1]} 29... Bc4+ {[%clk 0:00:33.1]} 0-1

[Event "*** Titled Tuesday Blitz"]
[Site "Chess.com"]
[Date "2018.09.04"]
[Round "2"]
[White "ZatonskihAnna"]
[Black "twitchTriniCupid"]
[Result "1-0"]
[WhiteElo "2254"]
[BlackElo "2219"]
[TimeControl "180+2"]
[EndTime "13:54:58 PDT"]
[Termination "ZatonskihAnna won by resignation"]

1. e4 {[%clk 0:03:00]} 1... c6 {[%clk 0:03:01]} 2. Nc3 {[%clk 0:02:52.5]} 2...
d5 {[%clk 0:03:02]} 3. Nf3 {[%clk 0:02:54]} 3... Bg4 {[%clk 0:03:00.5]} 4. h3
{[%clk 0:02:53.2]} 4... Bxf3 {[%clk 0:03:00.9]} 5. Qxf3 {[%clk 0:02:55.1]} 5...
e6 {[%clk 0:03:00.6]} 6. d3 {[%clk 0:02:55.3]} 6... Nf6 {[%clk 0:03:00]} 7. g4
{[%clk 0:02:53.4]} 7... Qc7 {[%clk 0:02:59.4]} 8. Bg2 {[%clk 0:02:53.8]} 8...
Nbd7 {[%clk 0:02:59.4]} 9. O-O {[%clk 0:02:52.2]} 9... Bb4 {[%clk 0:02:55.6]}
10. Nd1 {[%clk 0:02:42.1]} 10... O-O {[%clk 0:02:49.8]} 11. Qe2 {[%clk
0:02:42.9]} 11... Rad8 {[%clk 0:02:22.3]} 12. f4 {[%clk 0:02:41.4]} 12... dxe4
{[%clk 0:02:22.4]} 13. dxe4 {[%clk 0:02:41.8]} 13... Qb6+ {[%clk 0:02:09.7]} 14.
Kh1 {[%clk 0:02:42.3]} 14... a5 {[%clk 0:02:09.9]} 15. e5 {[%clk 0:02:38.7]}
15... Nd5 {[%clk 0:02:05.7]} 16. Nf2 {[%clk 0:02:40.1]} 16... Rfe8 {[%clk
0:01:32.6]} 17. Ne4 {[%clk 0:02:32.2]} 17... Bf8 {[%clk 0:01:27.2]} 18. c4
{[%clk 0:02:27.8]} 18... Nb4 {[%clk 0:01:24.5]} 19. Be3 {[%clk 0:02:19.8]} 19...
c5 {[%clk 0:01:25.6]} 20. Rfd1 {[%clk 0:02:02.7]} 20... Nb8 {[%clk 0:01:18.8]}
21. a3 {[%clk 0:02:01.7]} 21... N4a6 {[%clk 0:01:18.5]} 22. Qf2 {[%clk
0:02:00.6]} 22... Nc6 {[%clk 0:01:16.1]} 23. Nd6 {[%clk 0:01:44.1]} 23... Bxd6
{[%clk 0:01:15.9]} 24. exd6 {[%clk 0:01:45.4]} 24... Nd4 {[%clk 0:01:13.1]} 25.
Bxd4 {[%clk 0:01:44.9]} 25... cxd4 {[%clk 0:01:14.3]} 26. Qxd4 {[%clk
0:01:46.4]} 26... Nc5 {[%clk 0:01:00.4]} 27. b4 {[%clk 0:01:23.2]} 27... axb4
{[%clk 0:00:56.2]} 28. axb4 {[%clk 0:01:25.1]} 28... Qxb4 {[%clk 0:00:47.9]} 29.
Rdb1 {[%clk 0:01:17.4]} 29... Nb3 {[%clk 0:00:46.9]} 30. Qd3 {[%clk 0:01:14.9]}
30... Qd2 {[%clk 0:00:14.3]} 31. Rxb3 {[%clk 0:01:05.8]} 31... Qxf4 {[%clk
0:00:14.9]} 32. Rd1 {[%clk 0:01:05.9]} 32... Rd7 {[%clk 0:00:15.3]} 33. Rxb7
{[%clk 0:01:05.4]} 33... Red8 {[%clk 0:00:16.5]} 34. Rxd7 {[%clk 0:01:05.9]}
34... Rxd7 {[%clk 0:00:17.7]} 35. c5 {[%clk 0:01:07.4]} 1-0